[Event "Indian Rapid Championship 2023-24"]
[Site "Nashik"]
[Date "2024.03.04"]
[Round "3.9"]
[White "Das, Arghyadip"]
[Black "Sai Agni Jeevitesh, J."]
[Result "1/2-1/2"]
[ECO "D02"]
[WhiteElo "2405"]
[BlackElo "2285"]
[Annotator "TA"]
[PlyCount "75"]
[EventDate "2024.03.02"]
[EventType "swiss"]
[EventCountry "IND"]
[SourceTitle "playchess.com"]
[Source "ChessBase"]
[SourceQuality "1"]
[TimeControl "900+10"]

{[%evp 9,75,0,7,11,6,11,10,10,3,10,11,18,15,2,12,8,18,4,12,12,12,11,14,10,18,7,12,10,14,8,9,15,33,6,9,10,21,9,14,1,4,6,18,20,11,6,10,6,6,6,6,6,6,0,6,0,0,0,0,0,0,0,0,0,0,0,0,0]} 1. Nf3 {[%emt 0:00:04]} d5 {[%emt 0:00:11]} 2. d4 {[%emt 0:00:09]} Nf6 {[%emt 0:00:05]} 3. Bf4 {[%emt 0:00:01]} e6 {[%emt 0:00:13]} 4. e3 {[%emt 0:00:03]} c5 {[%emt 0:00:01]} 5. Nbd2 {[%emt 0:00:25]} Qb6 {[%emt 0:00:02]} 6. Rb1 {[%emt 0:00:20]} Bd6 {[%emt 0:00:07]} 7. dxc5 {[%emt 0:01:09]} Qxc5 {[%emt 0:00:10]} 8. b4 {[%emt 0:00:04]} Qc7 {[%emt 0:00:14]} 9. Bxd6 {[%emt 0:00:07]} Qxd6 {[%emt 0:00:02]} 10. c4 {[%emt 0:00:05]} dxc4 {[%emt 0:00:53]} 11. Bxc4 {[%emt 0:01:04]} O-O {[%emt 0:00:03]} 12. O-O {[%emt 0:00:03]} Rd8 {[%emt 0:00:06]} 13. Qb3 {[%emt 0:00:26]} Nc6 {[%emt 0:01:29]} 14. Rfd1 {[%emt 0:00:05][%cal Od2e4]} Qe7 {[%emt 0:00:01]} 15. a3 {[%emt 0:00:59]} Bd7 {[%emt 0:00:10]} 16. Bd3 {[%emt 0:01:34]} Be8 {[%emt 0:01:27]} 17. Ne4 {[%emt 0:00:43]} Nxe4 {[%emt 0:00:45]} 18. Bxe4 {[%emt 0:00:01]} a6 {[%emt 0:00:27]} 19. h3 {[%emt 0:00:19]} Rxd1+ {[%emt 0:00:44]} 20. Rxd1 {[%emt 0:00:02]} Rd8 {[%emt 0:00:17]} 21. Ne1 {[%emt 0:01:37]} Rxd1 {[%emt 0:03:41] The position is equal.} 22. Qxd1 {[%emt 0:00:01]} Qd8 {[%emt 0:00:15]} 23. Qxd8 {[%emt 0:00:39]} Nxd8 $11 {[%emt 0:00:01][%mdl 4096] Endgame. KBN-KBN} 24. Nd3 {[%emt 0:00:02]} Bb5 {[%emt 0:00:57] [#] Strongly threatening ...f5.} (24... f5 $5 25. Bf3 $8 b6 $11) 25. g4 {[%emt 0:02:18]} Bxd3 {[%emt 0:01:17]} 26. Bxd3 {[%emt 0:00:01] KB-KN} g5 {[%emt 0:00:01]} 27. Kg2 {[%emt 0:01:35]} h6 {[%emt 0:00:02]} 28. Kf3 {[%emt 0:01:29]} Kf8 {[%emt 0:00:01]} 29. Ke4 {[%emt 0:00:02]} Ke7 {[%emt 0:00:01]} 30. Kd4 {[%emt 0:00:10] Threatens to win with Kc5.} Kd6 {[%emt 0:00:01]} 31. Be4 {[%emt 0:00:43]} f6 {[%emt 0:00:36]} 32. f4 {[%emt 0:00:23]} Nc6+ {[%emt 0:01:49]} 33. Kc3 {[%emt 0:00:44]} b5 {[%emt 0:01:53]} 34. Bxc6 {[%emt 0:01:34]} Kxc6 {[%emt 0:00:01]} 35. Kd4 {[%emt 0:00:00]} Kd6 {[%emt 0:00:18]} 36. Ke4 {[%emt 0:00:01]} Kc6 {[%emt 0:00:05]} 37. Kd4 {[%emt 0:00:15]} Kd6 {[%emt 0:00:01]} 38. Ke4 {[%emt 0:00:00] A rather calm draw.   Weighted Error Value: White=0.04 (flawless) /Black=0.03 (flawless) .  Inaccurate:     	White=1     	---        OK:         	White=8     	Black=13} 1/2-1/2

[Event "Indian Rapid Championship 2023-24"]
[Site "Nashik"]
[Date "2024.03.04"]
[Round "3.10"]
[White "Mohammad Nubairshah Shaikh"]
[Black "Nithin Babu"]
[Result "1-0"]
[ECO "D78"]
[WhiteElo "2436"]
[BlackElo "2346"]
[Annotator "RC"]
[PlyCount "129"]
[EventDate "2024.03.02"]
[EventType "swiss"]
[EventCountry "IND"]
[SourceTitle "playchess.com"]
[Source "ChessBase"]
[SourceQuality "1"]
[TimeControl "900+10"]

1. Nf3 {[%emt 0:00:02]} Nf6 {[%emt 0:00:03]} 2. g3 {[%emt 0:00:06]} g6 {[%emt 0:00:02]} 3. b3 {[%emt 0:00:02]} Bg7 {[%emt 0:00:09]} 4. Bb2 {[%emt 0:00:01]} O-O {[%emt 0:00:09]} 5. Bg2 {[%emt 0:00:02]} c5 {[%emt 0:00:13]} 6. c4 {[%emt 0:00:01]} d6 {[%emt 0:00:07]} 7. d4 {[%emt 0:00:03]} d5 {[%emt 0:00:39]} 8. dxc5 {[%emt 0:00:31]} Qa5+ {[%emt 0:00:39]} 9. Nbd2 {[%emt 0:00:31]} dxc4 {[%emt 0:00:17]} 10. O-O {[%emt 0:00:15]} c3 {[%emt 0:01:19]} 11. Nc4 {[%emt 0:00:01]} Qxc5 {[%emt 0:00:10]} 12. Bxc3 {[%emt 0:00:02]} Nc6 {[%emt 0:00:08]} 13. Nfe5 {[%emt 0:01:07]} Rd8 {[%emt 0:01:50]} 14. b4 {[%emt 0:00:17]} Rxd1 {[%emt 0:01:10]} 15. bxc5 {[%emt 0:00:01]} Rxf1+ {[%emt 0:00:31]} 16. Rxf1 {[%emt 0:00:48]} Nxe5 {[%emt 0:00:39]} 17. Bxe5 {[%emt 0:00:07]} Nd7 {[%emt 0:00:46]} 18. Bxg7 {[%emt 0:03:29]} Kxg7 {[%emt 0:00:01]} 19. Rd1 {[%emt 0:00:52]} Nxc5 {[%emt 0:02:22]} 20. Rd8 {[%emt 0:00:01]} Ne6 {[%emt 0:00:59]} 21. Re8 {[%emt 0:00:10]} Kf6 {[%emt 0:00:09]} 22. e4 {[%emt 0:00:01]} Nc5 {[%emt 0:01:48]} 23. Rg8 {[%emt 0:02:39]} Nd7 {[%emt 0:02:22]} 24. Bh3 {[%emt 0:01:18]} e6 {[%emt 0:00:26]} 25. e5+ {[%emt 0:00:49]} Nxe5 {[%emt 0:01:45]} 26. Nd6 {[%emt 0:00:00]} Nc6 {[%emt 0:00:16]} 27. f4 {[%emt 0:00:42]} Rb8 {[%emt 0:00:23]} 28. Rxc8 {[%emt 0:00:49]} Rxc8 {[%emt 0:00:03]} 29. Nxc8 {[%emt 0:00:01]} a5 {[%emt 0:00:11]} 30. a4 {[%emt 0:00:15]} Nd4 {[%emt 0:00:07]} 31. Nb6 {[%emt 0:00:18]} Ke7 {[%emt 0:00:12]} 32. Bg2 {[%emt 0:00:06]} Kd6 {[%emt 0:00:08]} 33. Nc4+ {[%emt 0:00:03]} Kc7 {[%emt 0:00:09]} 34. Nxa5 {[%emt 0:00:08]} b6 {[%emt 0:00:02]} 35. Nc4 {[%emt 0:00:04]} Ne2+ {[%emt 0:00:06]} 36. Kf2 {[%emt 0:00:01]} Nc3 {[%emt 0:00:01]} 37. Nb2 {[%emt 0:00:16]} Kd6 {[%emt 0:00:07]} 38. Ke3 {[%emt 0:00:16]} Kc5 {[%emt 0:00:07]} 39. Kd3 {[%emt 0:01:30]} Na2 {[%emt 0:00:32]} 40. Kc2 {[%emt 0:01:06]} f6 {[%emt 0:00:13]} 41. Bf1 {[%emt 0:00:25]} Nb4+ {[%emt 0:00:08]} 42. Kb3 {[%emt 0:00:03]} Nc6 {[%emt 0:00:14]} 43. Bg2 {[%emt 0:00:20]} Nd4+ {[%emt 0:00:13]} 44. Kc3 {[%emt 0:00:01]} e5 {[%emt 0:00:05]} 45. Nd3+ {[%emt 0:00:41]} Kd6 {[%emt 0:00:01]} 46. fxe5+ {[%emt 0:00:03]} fxe5 {[%emt 0:00:01]} 47. Be4 {[%emt 0:00:03]} Ne6 {[%emt 0:00:10]} 48. h4 {[%emt 0:00:11]} Nd4 {[%emt 0:00:11]} 49. Kc4 {[%emt 0:00:05]} Ne2 {[%emt 0:00:33]} 50. g4 {[%emt 0:00:01]} Ke6 {[%emt 0:00:07]} 51. Bd5+ {[%emt 0:00:08]} Kd6 {[%emt 0:00:01]} 52. Nf2 {[%emt 0:00:05]} Nf4 {[%emt 0:00:08]} 53. Ne4+ {[%emt 0:00:11]} Kc7 {[%emt 0:00:02]} 54. g5 {[%emt 0:00:24]} Ng2 {[%emt 0:00:08]} 55. Bg8 {[%emt 0:00:01]} Nxh4 {[%emt 0:00:33]} 56. Bxh7 {[%emt 0:00:03]} Kd7 {[%emt 0:00:04]} 57. Bg8 {[%emt 0:00:05]} Nf3 {[%emt 0:00:24]} 58. Bf7 {[%emt 0:00:07]} Nh4 {[%emt 0:00:08]} 59. Kd5 {[%emt 0:00:24]} Ke7 {[%emt 0:00:01]} 60. Be6 {[%emt 0:00:01]} Nf3 {[%emt 0:00:03]} 61. Bg4 {[%emt 0:00:05]} Ne1 {[%emt 0:00:17]} 62. Be2 {[%emt 0:00:05]} Nc2 {[%emt 0:00:20]} 63. Kxe5 {[%emt 0:00:02]} Ne3 {[%emt 0:00:06]} 64. Nc3 {[%emt 0:00:02]} Nc2 {[%emt 0:00:10]} 65. Bd3 {[%emt 0:00:04]} 1-0

[Event "Indian Rapid Championship 2023-24"]
[Site "Nashik"]
[Date "2024.03.04"]
[Round "4.1"]
[White "Shahil Dey"]
[Black "Ghosh, Diptayan"]
[Result "0-1"]
[ECO "D02"]
[WhiteElo "2332"]
[BlackElo "2559"]
[Annotator "RC"]
[PlyCount "127"]
[EventDate "2024.03.02"]
[EventType "swiss"]
[EventCountry "IND"]
[SourceTitle "playchess.com"]
[Source "ChessBase"]
[SourceQuality "1"]
[TimeControl "900+10"]

1. Nf3 {[%emt 0:00:02]} d5 {[%emt 0:00:03]} 2. g3 {[%emt 0:00:02]} Nd7 {[%emt 0:00:16]} 3. d4 {[%emt 0:00:12]} Nb6 {[%emt 0:00:02]} 4. Bg2 {[%emt 0:00:02]} Bf5 {[%emt 0:00:02]} 5. O-O {[%emt 0:00:06]} e6 {[%emt 0:00:01]} 6. Nbd2 {[%emt 0:00:29]} Be7 {[%emt 0:00:25]} 7. b3 {[%emt 0:01:12]} Nf6 {[%emt 0:00:04]} 8. Bb2 {[%emt 0:00:09]} h6 {[%emt 0:00:07]} 9. c4 {[%emt 0:00:37]} c6 {[%emt 0:00:04]} 10. Ne5 {[%emt 0:00:33]} O-O {[%emt 0:00:05]} 11. e3 {[%emt 0:00:49]} a5 {[%emt 0:00:13]} 12. Qe2 {[%emt 0:00:22]} Bh7 {[%emt 0:00:52]} 13. a3 {[%emt 0:00:38]} Nbd7 {[%emt 0:00:05]} 14. Rac1 {[%emt 0:01:22]} Qb6 {[%emt 0:01:05]} 15. Rfd1 {[%emt 0:00:40]} Rfd8 {[%emt 0:00:15]} 16. Nxd7 {[%emt 0:02:40]} Nxd7 {[%emt 0:00:26]} 17. c5 {[%emt 0:01:22]} Qc7 {[%emt 0:00:04]} 18. f4 {[%emt 0:00:59]} b6 {[%emt 0:01:16]} 19. b4 {[%emt 0:00:40]} axb4 {[%emt 0:00:08]} 20. axb4 {[%emt 0:00:01]} bxc5 {[%emt 0:01:16]} 21. bxc5 {[%emt 0:00:02]} Rdb8 {[%emt 0:00:03]} 22. Ra1 {[%emt 0:00:45]} Rxa1 {[%emt 0:03:40]} 23. Bxa1 {[%emt 0:00:02]} Qa5 {[%emt 0:00:02]} 24. Rc1 {[%emt 0:04:22]} Qa3 {[%emt 0:02:48]} 25. Qe1 {[%emt 0:00:03]} Bf6 {[%emt 0:00:36]} 26. Rc3 {[%emt 0:00:21]} Qa2 {[%emt 0:00:38]} 27. Qc1 {[%emt 0:00:09]} Ra8 {[%emt 0:01:06]} 28. Bb2 {[%emt 0:00:02]} Bd8 {[%emt 0:00:04]} 29. Ra3 {[%emt 0:01:04]} Rxa3 {[%emt 0:00:02]} 30. Bxa3 {[%emt 0:00:01]} Ba5 {[%emt 0:00:58]} 31. Bb2 {[%emt 0:00:17]} Nf6 {[%emt 0:00:47]} 32. Bc3 {[%emt 0:00:06]} Bc7 {[%emt 0:00:53]} 33. h3 {[%emt 0:00:10]} Qa6 {[%emt 0:00:26]} 34. Bf1 {[%emt 0:00:15]} Bd3 {[%emt 0:00:04]} 35. Bg2 {[%emt 0:00:05]} g5 {[%emt 0:00:53]} 36. Kf2 {[%emt 0:00:17]} gxf4 {[%emt 0:00:29]} 37. gxf4 {[%emt 0:00:00]} Kh7 {[%emt 0:00:15]} 38. Qa1 {[%emt 0:00:19]} Qxa1 {[%emt 0:00:15]} 39. Bxa1 {[%emt 0:00:01]} Ba5 {[%emt 0:00:00]} 40. Nb3 {[%emt 0:00:02]} Bb4 {[%emt 0:00:05]} 41. Nc1 {[%emt 0:00:18]} Bc4 {[%emt 0:00:13]} 42. Ne2 {[%emt 0:00:20]} Kg6 {[%emt 0:00:06]} 43. Ng3 {[%emt 0:00:06]} h5 {[%emt 0:00:16]} 44. Bb2 {[%emt 0:00:08]} Bd3 {[%emt 0:00:12]} 45. Bf3 {[%emt 0:00:16]} h4 {[%emt 0:00:02]} 46. Ne2 {[%emt 0:00:07]} Bf5 {[%emt 0:00:18]} 47. Bg2 {[%emt 0:00:13]} Ne4+ {[%emt 0:00:12]} 48. Bxe4 {[%emt 0:00:03]} Bxe4 {[%emt 0:00:01]} 49. Bc3 {[%emt 0:00:17]} Ba3 {[%emt 0:00:08]} 50. Ng1 {[%emt 0:00:09]} Bf5 {[%emt 0:00:14]} 51. Be1 {[%emt 0:00:06]} f6 {[%emt 0:00:05]} 52. Kg2 {[%emt 0:00:08]} Kh5 {[%emt 0:00:01]} 53. Ne2 {[%emt 0:00:08]} Bd3 {[%emt 0:00:16]} 54. Kf3 {[%emt 0:00:18]} Bb2 {[%emt 0:00:15]} 55. Bd2 {[%emt 0:00:09]} Bf5 {[%emt 0:00:21]} 56. Kg2 {[%emt 0:00:04]} e5 {[%emt 0:00:13]} 57. fxe5 {[%emt 0:00:01]} fxe5 {[%emt 0:00:01]} 58. dxe5 {[%emt 0:00:26]} Bxe5 {[%emt 0:00:05]} 59. Nd4 {[%emt 0:00:07]} Bd7 {[%emt 0:00:02]} 60. Be1 {[%emt 0:00:09]} Bf6 {[%emt 0:00:01]} 61. Nf3 {[%emt 0:00:13]} Be7 {[%emt 0:00:07]} 62. Bb4 {[%emt 0:00:11]} Be8 {[%emt 0:00:25]} 63. Kh2 {[%emt 0:00:08]} Kg6 {[%emt 0:00:05]} 64. Be1 {[%emt 0:00:25]} 0-1

[Event "Indian Rapid Championship 2023-24"]
[Site "Nashik"]
[Date "2024.03.04"]
[Round "4.2"]
[White "Aronyak Ghosh"]
[Black "Kushagra Mohan"]
[Result "1-0"]
[ECO "A38"]
[WhiteElo "2517"]
[BlackElo "2351"]
[Annotator "TA"]
[PlyCount "109"]
[EventDate "2024.03.02"]
[EventType "swiss"]
[EventCountry "IND"]
[SourceTitle "playchess.com"]
[Source "ChessBase"]
[SourceQuality "1"]
[TimeControl "900+10"]

{[%evp 21,109,52,18,18,45,53,56,52,85,69,130,125,119,130,143,145,143,148,153,115,185,187,209,201,207,198,275,184,179,183,200,195,252,226,263,256,263,268,268,261,291,276,291,293,296,306,305,303,321,255,306,313,328,320,310,283,267,241,240,212,204,205,197,72,106,80,89,51,459,455,457,457,422,212,436,445,621,623,581,572,537,522,29967,29968,29966,29962,29969,29971,5337,5167]} 1. Nf3 {[%emt 0:00:24]} Nf6 {[%emt 0:00:10]} 2. c4 {[%emt 0:00:04]} c5 {[%emt 0:00:07]} 3. Nc3 {[%emt 0:00:45]} Nc6 {[%emt 0:00:01]} 4. g3 {[%emt 0:01:10]} e5 {[%emt 0:00:29]} 5. Bg2 {[%emt 0:00:08]} g6 {[%emt 0:01:17]} 6. d3 {[%emt 0:00:19]} Bg7 {[%emt 0:00:19]} 7. a3 {[%emt 0:00:24]} O-O {[%emt 0:00:08]} 8. O-O {[%emt 0:00:14]} d6 {[%emt 0:01:00]} 9. Rb1 {[%emt 0:00:41]} a5 {[%emt 0:00:35]} 10. Bg5 {[%emt 0:00:38]} h6 {[%emt 0:00:07]} 11. Bxf6 {[%emt 0:00:11]} Bxf6 {[%emt 0:00:13]} 12. Nd5 {[%emt 0:00:04]} Bg7 {[%emt 0:00:11]} 13. b4 {[%emt 0:00:10]} axb4 {[%emt 0:00:30]} 14. axb4 {[%emt 0:00:01] White is slightly better.} b6 {[%emt 0:02:26]} 15. b5 {[%emt 0:01:08]} Nb8 {[%emt 0:00:11]} (15... Na5 $14) 16. Nd2 $16 {[%emt 0:00:28][%cal Od5b6] White has more active pieces. The black rooks are passive. A dynamic duo of knights.} Bb7 {[%emt 0:01:45] [#]} 17. Nf6+ $1 {[%emt 0:01:12][%mdl 512]} Bxf6 {[%emt 0:00:14]} (17... Qxf6 18. Bxb7) 18. Bxb7 {[%emt 0:00:01]} Ra7 {[%emt 0:00:01] Black is weak on the light squares} 19. Bd5 {[%emt 0:00:13]} Bg7 {[%emt 0:00:14]} 20. Ra1 {[%emt 0:03:16]} Qc7 {[%emt 0:01:36]} (20... Rxa1 $16 21. Qxa1 e4) 21. Rxa7 $18 {[%emt 0:01:37]} Qxa7 {[%emt 0:00:01]} 22. Qa1 {[%emt 0:00:01]} Qe7 {[%emt 0:00:38][%cal Oe5e4]} 23. Qa8 {[%emt 0:00:16]} Kh7 {[%emt 0:00:10]} (23... e4 $142 24. Nxe4 Kh7) 24. Qb7 {[%emt 0:00:23]} Qxb7 {[%emt 0:01:26]} 25. Bxb7 {[%emt 0:00:02]} f5 {[%emt 0:00:01][%cal Bf7f5,Bf5f4][%mdl 32]} 26. Bd5 {[%emt 0:00:19] Wards off Rf7} e4 {[%emt 0:01:21]} (26... Nd7 $142 27. Ra1 Kh8) 27. dxe4 {[%emt 0:00:14]} f4 {[%emt 0:00:00]} 28. Be6 {[%emt 0:01:54] Dodges Nd7} Re8 {[%emt 0:00:48]} 29. Bh3 {[%emt 0:00:05]} fxg3 {[%emt 0:00:31]} 30. hxg3 {[%emt 0:00:02]} Re7 {[%emt 0:00:01]} 31. Rd1 {[%emt 0:00:13]} Nd7 {[%emt 0:00:18]} 32. Bxd7 {[%emt 0:00:15]} Rxd7 {[%emt 0:00:01][%mdl 4096] Endgame. KRB-KRN} 33. Nf1 {[%emt 0:00:52]} Bd4 {[%emt 0:00:27]} 34. e3 {[%emt 0:00:05]} Bg7 {[%emt 0:00:16]} 35. Rd2 {[%emt 0:00:18]} Kg8 {[%emt 0:01:18]} 36. Ra2 {[%emt 0:00:11]} Kf7 {[%emt 0:00:02]} 37. Ra6 {[%emt 0:00:03]} Rb7 {[%emt 0:00:01]} 38. Kg2 {[%emt 0:00:09]} h5 {[%emt 0:00:06] [#]} 39. g4 $1 {[%emt 0:00:23][%mdl 512]} hxg4 {[%emt 0:00:07]} 40. Nh2 {[%emt 0:01:26]} Re7 {[%emt 0:00:22]} 41. Rxb6 {[%emt 0:00:40]} Rxe4 {[%emt 0:00:03] [#]} 42. Rxd6 {[%emt 0:00:03]} (42. Rb7+ $1 $18 Kg8 43. Rd7 Rxc4 44. b6 (44. Rxd6 g3 $16)) 42... Rxc4 {[%emt 0:00:26]} 43. Rc6 {[%emt 0:00:06]} Be5 {[%emt 0:00:20]} 44. b6 {[%emt 0:00:03]} Rc2 $2 {[%emt 0:00:12][%mdl 8192] A mistake that costs the game.} ({Black should play} 44... Rb4 $14) 45. Nxg4 {[%emt 0:00:04]} Bb8 {[%emt 0:00:51]} 46. Kf3 {[%emt 0:00:47]} Rb2 {[%emt 0:00:33]} 47. e4 {[%emt 0:00:21]} (47. Rxc5 Rxb6 48. Rd5 Ke7 $16) (47. Ke4 $142) 47... Rb3+ $2 {[%emt 0:00:07]} (47... c4 48. Rf6+ (48. Rxc4 Rb3+ 49. Ne3 Rxb6 $16) 48... Kg7) 48. Ne3 {[%emt 0:00:11]} Be5 {[%emt 0:00:07]} 49. Kg4 {[%emt 0:00:20]} Bd4 {[%emt 0:00:35]} 50. Nd5 {[%emt 0:00:02]} c4 {[%emt 0:00:16]} 51. f4 {[%emt 0:00:11][%cal Oe4e5] Threatens to win with e5!} Rb5 {[%emt 0:00:12]} 52. Rc7+ {[%emt 0:00:05]} Kf8 {[%emt 0:00:08]} 53. Rxc4 {[%emt 0:00:08]} Bxb6 {[%emt 0:00:13]} 54. Rc8+ {[%emt 0:00:04]} Kf7 {[%emt 0:00:00]} 55. Rb8 {[%emt 0:00:01] Weighted Error Value: White=0.16 (very precise) /Black=0.53.  Loses game:     	---       	Black=1      Mistake:       	White=2     	Black=5      Inaccurate:     	White=2     	Black=5      OK:         	White=20    	Black=12     Best:        	White=5     	Black=1} 1-0

[Event "Indian Rapid Championship 2023-24"]
[Site "Nashik"]
[Date "2024.03.04"]
[Round "4.3"]
[White "Raja Rithvik R"]
[Black "Laxman, R.R."]
[Result "1-0"]
[ECO "D30"]
[WhiteElo "2532"]
[BlackElo "2331"]
[Annotator "TA"]
[PlyCount "79"]
[EventDate "2024.03.02"]
[EventType "swiss"]
[EventCountry "IND"]
[SourceTitle "playchess.com"]
[Source "ChessBase"]
[SourceQuality "1"]
[TimeControl "900+10"]

{[%evp 9,79,32,49,45,53,68,51,21,49,54,52,7,60,21,14,21,22,21,39,18,12,-6,-6,-6,0,0,-10,-22,-9,-16,14,0,96,100,89,93,100,86,108,77,68,56,56,51,47,18,83,87,88,39,142,147,145,29,29,24,23,17,16,0,86,79,135,144,342,346,841,839,29984,29985,29994,29995]} 1. d4 {[%emt 0:00:03]} d5 {[%emt 0:00:02]} 2. c4 {[%emt 0:00:01]} e6 {[%emt 0:00:02]} 3. Nf3 {[%emt 0:00:07]} h6 {[%emt 0:00:03]} 4. g3 {[%emt 0:00:10]} Nf6 {[%emt 0:00:03]} 5. Bg2 {[%emt 0:00:06]} Nc6 {[%emt 0:00:02]} 6. O-O {[%emt 0:00:18]} Bd6 {[%emt 0:00:02]} 7. Qc2 {[%emt 0:01:49]} O-O {[%emt 0:00:32]} 8. Rd1 {[%emt 0:00:06] White is slightly better.} a5 {[%emt 0:00:33]} 9. a3 {[%emt 0:00:21] Prevents Nb4} Bd7 {[%emt 0:00:44]} 10. Nc3 {[%emt 0:02:09]} Re8 {[%emt 0:00:41]} (10... dxc4 $11 11. e4 e5) 11. e4 {[%emt 0:01:27]} Nxe4 {[%emt 0:00:18]} 12. Nxe4 {[%emt 0:00:02]} dxe4 {[%emt 0:00:02]} 13. Qxe4 {[%emt 0:00:01]} a4 {[%emt 0:00:05]} 14. Ne5 {[%emt 0:00:55]} f5 {[%emt 0:00:13]} 15. Nxc6 {[%emt 0:01:24]} Bxc6 {[%emt 0:00:10]} 16. Qc2 {[%emt 0:00:01]} Bxg2 {[%emt 0:00:07]} 17. Kxg2 {[%emt 0:00:01]} Qd7 {[%emt 0:00:11]} 18. Be3 {[%emt 0:01:25]} Qc6+ {[%emt 0:02:36]} 19. Kg1 {[%emt 0:01:07]} Qf3 {[%emt 0:01:05]} 20. Rd3 {[%emt 0:00:21][%cal Oe3h6]} Qg4 {[%emt 0:00:15]} (20... Qc6 $11) 21. c5 $16 {[%emt 0:01:18]} Be7 {[%emt 0:00:33]} 22. Bf4 {[%emt 0:00:02]} c6 {[%emt 0:00:03]} 23. Re1 {[%emt 0:00:09]} Bf6 {[%emt 0:00:03]} 24. Qc4 {[%emt 0:00:05][%cal Oc4b4]} Qg6 {[%emt 0:00:12]} 25. Rxe6 {[%emt 0:00:19] White has more active pieces.} Qf7 {[%emt 0:00:02]} 26. Rxe8+ {[%emt 0:00:14]} Rxe8 {[%emt 0:00:02]} 27. Qb4 {[%emt 0:02:48][%cal Of4e3] Repels Re1+} (27. Qxa4 Re1+ 28. Kg2 Qd5+ 29. f3 (29. Rf3 Bxd4 30. Qb3 Qxb3 $15) 29... Re2+ 30. Kg1 Rxb2 $17) (27. Qc3 $5) 27... Re4 {[%emt 0:00:28]} (27... Qd5 $11) 28. Be3 $1 {[%emt 0:00:21]} (28. Qxa4 Re1+ 29. Kg2 Qd5+ 30. Rf3 g5 31. Qa8+ Kf7 32. Qxb7+ Kg6 $15) 28... g5 {[%emt 0:02:17]} 29. f3 {[%emt 0:00:43]} (29. Qxa4 $16 f4 30. Bd2) 29... Re8 {[%emt 0:00:59]} (29... Re7 $14) 30. Qxa4 {[%emt 0:00:02]} Qa2 {[%emt 0:00:41]} 31. Bf2 {[%emt 0:00:59]} ({Wrong is} 31. Qb3+ $2 Qxb3 32. Rxb3 Rxe3 $19) (31. d5 $16 Kf7 32. d6 (32. dxc6 bxc6 33. Qc2 Qxb2 $18)) 31... Qxb2 $11 {[%emt 0:00:41]} 32. Qc4+ {[%emt 0:00:22]} (32. Qb3+ {simplifies} Qxb3 33. Rxb3 Re7 34. g4) 32... Kf8 {[%emt 0:00:12] [#] aiming for ...Re2.} 33. Rb3 {[%emt 0:00:01]} Qa2 {[%emt 0:00:18]} (33... Qa1+ {simplifies} 34. Qf1 Bxd4 35. Qxa1 Bxa1 36. Rxb7 Ra8) 34. Kf1 {[%emt 0:00:41] Prevents Re2} (34. Rb4 {simplifies} Qxc4 35. Rxc4 Kf7 36. Kf1) 34... g4 {[%emt 0:00:44]} (34... Qa1+ $11 {remains equal.} 35. Kg2 Qa2) 35. Qd3 {[%emt 0:00:15]} gxf3 {[%emt 0:01:25]} (35... Re7 $142) 36. Qxf3 $16 {[%emt 0:00:12]} Qc2 $2 {[%emt 0:00:37] A mistake that costs the game.} (36... Re7 $16 37. d5 cxd5) 37. Rxb7 $18 {[%emt 0:00:25]} Re4 $2 {[%emt 0:00:04]} (37... Qe4 38. Qxe4 fxe4) 38. Qh5 {[%emt 0:00:24][%csl Gb7][%cal Rh5f7] [#]} (38. Qxf5 $2 {is the wrong capture.} Re1+ 39. Kxe1 Qxf5 $19) 38... Be7 {[%emt 0:00:44]} 39. Qxf5+ {[%emt 0:00:09]} Kg8 {[%emt 0:00:01]} 40. Qg6+ {[%emt 0:00:04] Weighted Error Value: White=0.18 (very precise) /Black=0.48.  Loses game:     	---       	Black=1      Mistake:       	White=2     	Black=7      Inaccurate:     	White=4     	Black=3      OK:         	White=7     	Black=11     Best:        	White=2     	Black=1      Strong:       	White=1     	---} 1-0

[Event "Indian Rapid Championship 2023-24"]
[Site "Nashik"]
[Date "2024.03.04"]
[Round "4.4"]
[White "Hari Madhavan N B"]
[Black "Moksh Amit Doshi"]
[Result "1-0"]
[ECO "C54"]
[WhiteElo "2395"]
[BlackElo "2353"]
[Annotator "ChessBase"]
[PlyCount "59"]
[EventDate "2024.03.02"]
[EventType "swiss"]
[EventCountry "IND"]
[SourceTitle "playchess.com"]
[Source "ChessBase"]
[SourceQuality "1"]
[TimeControl "900+10"]

1. e4 {[%emt 0:00:03]} e5 {[%emt 0:00:15]} 2. Nf3 {[%emt 0:00:04]} Nc6 {[%emt 0:00:01]} 3. Bc4 {[%emt 0:00:01]} Bc5 {[%emt 0:00:02]} 4. c3 {[%emt 0:00:02]} Nf6 {[%emt 0:00:01]} 5. d4 {[%emt 0:00:02]} exd4 {[%emt 0:00:02]} 6. e5 {[%emt 0:00:02]} d5 {[%emt 0:00:02]} 7. Bb5 {[%emt 0:00:01]} Ne4 {[%emt 0:00:01]} 8. cxd4 {[%emt 0:00:02]} Bb6 {[%emt 0:00:01]} 9. Be3 {[%emt 0:00:31]} O-O {[%emt 0:00:18]} 10. Nc3 {[%emt 0:00:08]} Bg4 {[%emt 0:00:03]} 11. h3 {[%emt 0:00:08]} Bh5 {[%emt 0:00:01]} 12. Qa4 {[%emt 0:00:13]} Ne7 {[%emt 0:01:19]} 13. Bd3 {[%emt 0:00:14]} Bg6 {[%emt 0:00:30]} 14. Qc2 {[%emt 0:00:15]} Ba5 {[%emt 0:03:31]} 15. O-O {[%emt 0:01:24]} Bxc3 {[%emt 0:00:02]} 16. bxc3 {[%emt 0:00:02]} Nf5 {[%emt 0:02:20]} 17. Rae1 {[%emt 0:00:27]} Qd7 {[%emt 0:00:54]} 18. Nd2 {[%emt 0:04:12]} Nxe3 {[%emt 0:01:37]} 19. Rxe3 {[%emt 0:00:04]} Nxd2 {[%emt 0:00:04]} 20. Qxd2 {[%emt 0:00:02]} Rac8 {[%emt 0:01:01]} 21. f4 {[%emt 0:00:11]} Bxd3 {[%emt 0:00:05]} 22. Qxd3 {[%emt 0:00:02]} f5 {[%emt 0:00:33]} 23. e6 {[%emt 0:01:02]} Qd6 {[%emt 0:00:16]} 24. e7 {[%emt 0:00:11]} Rfe8 {[%emt 0:00:14]} 25. Qxf5 {[%emt 0:00:03]} c6 {[%emt 0:00:32]} 26. Rfe1 {[%emt 0:00:54]} Rc7 {[%emt 0:00:16]} 27. Re6 {[%emt 0:00:03]} Qa3 {[%emt 0:00:20]} 28. Qe5 {[%emt 0:00:23]} Rd7 {[%emt 0:00:42]} 29. Re3 {[%emt 0:00:12]} Qa5 {[%emt 0:00:56]} 30. Rg3 {[%emt 0:00:14]} 1-0